bitfinex/quotes_BTCUSD_20250723
["timestamp","ask_amount","ask_price","bid_price","bid_amount"]
[1753285744389,0.55539048,118390.0,118380.0,0.16994745]
[1753285744597,0.55539048,118390.0,118380.0,0.19782475]
[1753285745073,0.55539048,118390.0,118380.0,0.18937745]
[1753285745301,0.55539048,118390.0,118380.0,0.001]
[1753285745738,0.85250048,118390.0,118380.0,0.001]
[1753285746385,1.25250048,118390.0,118380.0,0.001]
[1753285746586,1.26910048,118390.0,118380.0,0.001]
[1753285748560,1.25250048,118390.0,118380.0,0.001]
[1753285749421,0.00844715,118380.0,118370.0,0.68607163]
[1753285749639,1.15085318,118390.0,118380.0,0.16894745]
[1753285749846,1.23731048,118390.0,118380.0,0.16894745]
[1753285750286,0.01689445,118380.0,118370.0,0.67762362]
[1753285750517,0.28721365,118380.0,118370.0,0.6711459]
[1753285750734,0.27229942,118380.0,118370.0,0.11281584]
[1753285750942,0.27229942,118380.0,118370.0,0.27854757]
[1753285751809,0.67229942,118380.0,118370.0,0.27854757]
[1753285753136,0.68134212,118380.0,118370.0,0.09518584]
[1753285753349,1.04469311,118380.0,118370.0,0.09518584]
[1753285753564,0.66069311,118380.0,118370.0,0.09518584]
[1753285754003,0.66069311,118380.0,118370.0,0.09418584]
[1753285754223,1.00169311,118380.0,118370.0,0.09418584]
[1753285754467,1.00269311,118380.0,118370.0,0.09418584]
[1753285755369,0.63934212,118380.0,118370.0,0.09418584]
[1753285756220,1.00269311,118380.0,118370.0,0.09418584]
[1753285756441,1.02808411,118380.0,118370.0,0.09418584]
[1753285757549,1.04553313,118380.0,118370.0,0.09418584]
[1753285757750,1.04453313,118380.0,118370.0,0.09418584]
[1753285757954,1.04353313,118380.0,118370.0,0.09418584]
[1753285759302,1.04653313,118380.0,118370.0,0.09418584]
[1753285759545,1.17945313,118380.0,118370.0,0.09418584]
[1753285759758,1.32945313,118380.0,118370.0,0.09418584]
[1753285760370,1.37945313,118380.0,118370.0,0.09418584]
[1753285764265,1.01610214,118380.0,118370.0,0.09418584]
[1753285764467,1.37945313,118380.0,118370.0,0.09418584]
[1753285764684,1.01610214,118380.0,118370.0,0.09418584]
[1753285764876,1.37945313,118380.0,118370.0,0.09418584]
[1753285765298,0.81610214,118380.0,118370.0,0.09418584]
[1753285765546,1.52945313,118380.0,118370.0,0.09418584]
[1753285767762,1.57945313,118380.0,118370.0,0.09418584]
[1753285768201,1.57945313,118380.0,118370.0,1e-08]
[1753285769086,1.44653313,118380.0,118370.0,1e-08]
[1753285769309,1.21010214,118380.0,118370.0,1e-08]
[1753285769528,1.58345313,118380.0,118370.0,1e-08]
[1753285773029,1.58349313,118380.0,118370.0,1e-08]
[1753285782398,1.75265313,118380.0,118370.0,1e-08]
[1753285782611,1.38930214,118380.0,118370.0,1e-08]
[1753285782820,1.73665313,118380.0,118370.0,1e-08]
[1753285784729,1.71916313,118380.0,118370.0,1e-08]
[1753285785389,1.73685313,118380.0,118370.0,1e-08]
[1753285785607,1.75195313,118380.0,118370.0,1e-08]
[1753285788440,1.77019768,118380.0,118370.0,1e-08]
[1753285789349,1.75509768,118380.0,118370.0,1e-08]
[1753285789839,1.77069768,118380.0,118370.0,1e-08]
[1753285790065,1.40734669,118380.0,118370.0,1e-08]
[1753285790324,1.77069768,118380.0,118370.0,1e-08]
[1753285790818,1.75509768,118380.0,118370.0,1e-08]
[1753285792938,1.02493669,118380.0,118370.0,0.01530001]
[1753285793140,1.10387214,118380.0,118370.0,0.03671001]
[1753285793340,0.46642312,118380.0,118370.0,0.03671001]
[1753285793541,1.08642312,118380.0,118370.0,0.03671001]
[1753285793783,1.10387214,118380.0,118370.0,0.03671001]
[1753285794284,1.09887214,118380.0,118370.0,0.03671001]
[1753285794701,1.09387214,118380.0,118370.0,0.03671001]
[1753285794917,1.09687214,118380.0,118370.0,0.03671001]
[1753285795131,1.09987214,118380.0,118370.0,0.03671001]
[1753285797790,1.07448114,118380.0,118370.0,0.03671001]
[1753285798207,1.44170213,118380.0,118370.0,0.03170001]
[1753285798382,1.44170213,118380.0,118370.0,1e-08]
[1753285798383,1.45700213,118380.0,118370.0,1e-08]
[1753285799675,1.60700213,118380.0,118370.0,1e-08]
[1753285800543,1.65700213,118380.0,118370.0,1e-08]
[1753285800776,1.72260213,118380.0,118370.0,1e-08]
[1753285801493,0.90055869,118370.0,118360.0,1e-08]
[1753285801719,1.56444787,118370.0,118360.0,1e-08]
[1753285801929,1.59155091,118370.0,118360.0,1e-08]
[1753285802153,1.24740992,118370.0,118360.0,1e-08]
[1753285802364,1.59256002,118370.0,118360.0,1e-08]
[1753285802796,1.59756002,118370.0,118360.0,1e-08]
[1753285803024,1.23420903,118370.0,118360.0,1e-08]
[1753285804317,1.23820903,118370.0,118360.0,1e-08]
[1753285808373,6.42092053,118370.0,118360.0,1e-08]
[1753285808836,6.39945239,118370.0,118360.0,1e-08]
[1753285809263,6.37875467,118370.0,118360.0,1e-08]
[1753285810508,6.38706819,118370.0,118360.0,1e-08]
[1753285812268,6.47600819,118370.0,118360.0,1e-08]
[1753285812488,6.44248163,118370.0,118360.0,1e-08]
[1753285812912,6.48599321,118370.0,118360.0,1e-08]
[1753285813343,6.33289935,118370.0,118360.0,1e-08]
[1753285813515,6.46309935,118370.0,118360.0,1e-08]
[1753285813714,6.33289935,118370.0,118360.0,1e-08]
[1753285814031,1.24335353,118340.0,118330.0,0.0325]
[1753285814262,1.45799083,118340.0,118330.0,0.03476707]
[1753285814477,1.46011083,118340.0,118330.0,0.03797707]
[1753285814700,1.41011083,118340.0,118330.0,0.03797707]
[1753285814828,1.82346182,118340.0,118330.0,0.03797707]
[1753285815262,1.79886782,118340.0,118330.0,0.01634707]
[1753285815855,1.84986782,118340.0,118330.0,0.01634707]
[1753285816474,1.84886782,118340.0,118330.0,0.01634707]
[1753285816997,1.80186782,118340.0,118330.0,0.01634707]
[1753285817935,1.80186782,118340.0,118330.0,0.03174707]
[1753285818989,1.80186782,118340.0,118330.0,0.03707707]
[1753285820127,1.65186782,118340.0,118330.0,0.03707707]
[1753285820353,1.52170782,118340.0,118330.0,0.03707707]
[1753285820577,1.65182782,118340.0,118330.0,0.03707707]
[1753285821198,1.65182782,118340.0,118330.0,0.03174707]
[1753285821339,1.65182782,118340.0,118330.0,0.01634707]
[1753285821545,1.82102782,118340.0,118330.0,0.01634707]
[1753285821759,1.87102782,118340.0,118330.0,0.01634707]
[1753285822183,1.87278782,118340.0,118330.0,0.00014707]
[1753285822583,1.87102782,118340.0,118330.0,0.03837707]
[1753285822816,1.50767683,118340.0,118330.0,0.03837707]
[1753285823026,1.87102782,118340.0,118330.0,0.03837707]
[1753285824442,1.87102782,118340.0,118330.0,0.01674707]
[1753285826440,1.87102782,118340.0,118330.0,0.00014707]
[1753285826661,1.87277782,118340.0,118330.0,0.00014707]
[1753285827242,0.59602556,118330.0,118320.0,0.03431]
[1753285827452,1.17405385,118330.0,118320.0,0.03682024]
[1753285827653,0.82609385,118330.0,118320.0,0.01649024]
[1753285828079,0.82609385,118330.0,118320.0,0.03805024]
[1753285828496,1.16609385,118330.0,118320.0,0.03805024]
[1753285828708,0.67354286,118330.0,118320.0,0.03805024]
[1753285828934,0.41405384,118330.0,118320.0,0.40140123]
[1753285829167,0.55274456,118330.0,118320.0,0.40140123]
[1753285829379,0.55174456,118330.0,118320.0,0.40140123]
[1753285829593,0.55274456,118330.0,118320.0,0.40140123]
[1753285829818,0.55474456,118330.0,118320.0,0.40140123]
[1753285830026,0.55374456,118330.0,118320.0,0.40140123]
[1753285830802,0.55374456,118330.0,118320.0,0.03805024]
[1753285831026,0.55174456,118330.0,118320.0,0.03805024]
[1753285831382,0.56115379,118330.0,118320.0,0.03805024]
[1753285832073,1.26450478,118330.0,118320.0,0.03805024]
[1753285832533,0.90115379,118330.0,118320.0,0.03805024]
[1753285834465,1.05115379,118330.0,118320.0,0.03805024]
[1753285836252,0.92091379,118330.0,118320.0,0.03805024]
[1753285836452,1.05147379,118330.0,118320.0,0.40140123]
[1753285837514,1.05147379,118330.0,118320.0,0.03805024]
[1753285841627,1.5842538,118330.0,118320.0,0.00049024]
[1753285842118,1.58314689,118330.0,118320.0,0.01609024]
[1753285842315,1.58314689,118330.0,118320.0,0.03381024]
[1753285842525,1.58314689,118330.0,118320.0,0.03705024]
[1753285842732,1.2197959,118330.0,118320.0,0.03705024]
[1753285843395,1.21138667,118330.0,118320.0,0.03705024]
[1753285843593,1.20940667,118330.0,118320.0,0.03705024]
[1753285844058,1.21138667,118330.0,118320.0,0.03594333]
[1753285844268,1.20940667,118330.0,118320.0,0.03594333]
[1753285844937,1.20932667,118330.0,118320.0,0.03594333]
[1753285845376,1.19187765,118330.0,118320.0,0.03594333]
[1753285846635,1.23210313,118330.0,118320.0,0.03594333]
[1753285846832,1.19187765,118330.0,118320.0,0.03594333]
[1753285849579,1.20047397,118330.0,118320.0,0.03594333]
[1753285849781,0.57999397,118330.0,118320.0,0.39929432]
[1753285850001,0.70214325,118330.0,118320.0,0.39929432]
[1753285851236,0.70114325,118330.0,118320.0,0.39929432]
[1753285852108,0.70114325,118330.0,118320.0,0.40029432]
[1753285852547,0.70114325,118330.0,118320.0,0.40129432]
[1753285853124,0.70114325,118330.0,118320.0,0.03794333]
[1753285853301,0.70114325,118330.0,118320.0,0.40129432]
[1753285859542,0.57054325,118330.0,118320.0,0.40129432]
[1753285859734,0.70102325,118330.0,118320.0,0.40129432]
[1753285859944,0.57054325,118330.0,118320.0,0.40129432]
[1753285860105,0.70102325,118330.0,118320.0,0.40129432]
[1753285860302,0.57054325,118330.0,118320.0,0.93367844]
[1753285860501,0.70102325,118330.0,118320.0,0.40129432]
[1753285860746,0.70102325,118330.0,118320.0,0.57032745]
[1753285861079,0.70102325,118330.0,118320.0,0.59568191]
[1753285861286,0.40152399,118330.0,118320.0,0.96748405]
[1753285861494,0.53185811,118330.0,118320.0,0.96748405]
[1753285861705,0.52340767,118330.0,118320.0,0.98278292]
[1753285861924,0.52340759,118330.0,118320.0,0.96748405]
[1753285862195,0.3844773,118330.0,118320.0,0.96748405]
[1753285862441,0.5149973,118330.0,118320.0,0.96748405]
[1753285862655,0.52344759,118330.0,118320.0,0.96748405]
[1753285862868,0.5149973,118330.0,118320.0,0.96748405]
[1753285863058,0.13052,118330.0,118320.0,1.05196135]
[1753285863309,0.13052,118330.0,118320.0,0.96748405]
[1753285864582,0.13052,118330.0,118320.0,0.96648405]
[1753285865005,0.13052,118330.0,118320.0,0.96948405]
[1753285866797,0.28044,118340.0,118330.0,0.2265708]
[1753285867069,0.28044,118340.0,118330.0,0.59188179]
[1753285867308,0.28888958,118340.0,118330.0,0.59508179]
[1753285867531,0.28044,118340.0,118330.0,0.59508179]
[1753285867723,0.28044,118340.0,118330.0,0.62057719]
[1753285868141,0.28044,118340.0,118330.0,0.62257719]
[1753285869046,0.15,118340.0,118330.0,0.62457719]
[1753285869253,0.28036,118340.0,118330.0,0.62457719]
[1753285869946,0.28036,118340.0,118330.0,0.70905449]
[1753285870166,0.28036,118340.0,118330.0,0.62457719]
[1753285877488,0.28036,118340.0,118330.0,0.59908179]
[1753285880730,0.28036,118340.0,118330.0,0.62387597]
[1753285885866,0.28036,118340.0,118330.0,0.26052498]
[1753285886075,0.28036,118340.0,118330.0,0.62387597]
[1753285887298,0.13036,118340.0,118330.0,0.62387597]
[1753285887940,0.13036,118340.0,118330.0,0.70835327]
[1753285888295,0.15,118350.0,118340.0,0.20150393]
[1753285888498,0.41689695,118360.0,118350.0,0.20993795]
[1753285888499,0.15,118360.0,118350.0,0.20993795]
[1753285888710,0.32764751,118370.0,118360.0,0.19432153]
[1753285888927,0.3838773,118370.0,118360.0,0.95776351]
[1753285889151,0.5338773,118370.0,118360.0,0.95776351]
[1753285889358,0.54232474,118370.0,118360.0,0.95776351]
[1753285889518,0.55077232,118370.0,118360.0,0.95776351]
[1753285889728,0.55077225,118370.0,118360.0,0.95776351]
[1753285889931,0.55077225,118370.0,118360.0,0.95825439]
[1753285890156,0.56766763,118370.0,118360.0,1.00407]
[1753285890588,0.56766763,118370.0,118360.0,0.5949034]
[1753285890817,0.56766748,118370.0,118360.0,0.5959034]
[1753285891041,0.57611528,118370.0,118360.0,0.5959034]
[1753285891487,0.57611528,118370.0,118360.0,0.5969034]
[1753285891914,0.56766748,118370.0,118360.0,0.5969034]
[1753285892347,0.55077225,118370.0,118360.0,0.96025439]
[1753285892829,0.5592199,118370.0,118360.0,0.96025439]
[1753285893700,0.5676677,118370.0,118360.0,0.96025439]
[1753285893900,0.5592199,118370.0,118360.0,0.96025439]
[1753285894113,0.5676677,118370.0,118360.0,0.95923499]
[1753285894318,0.5676677,118370.0,118360.0,0.98768435]
[1753285894559,0.5592199,118370.0,118360.0,0.62433336]
[1753285894769,0.56766762,118370.0,118360.0,0.62433336]
[1753285895402,0.5592199,118370.0,118360.0,0.62433336]
[1753285895618,0.55077225,118370.0,118360.0,0.62433336]
[1753285895835,0.55921997,118370.0,118360.0,0.98768435]
[1753285896048,0.56766784,118370.0,118360.0,0.98768435]
[1753285896696,0.57611585,118370.0,118360.0,0.59690347]
[1753285897144,0.72171491,118370.0,118360.0,0.03923088]
[1753285897314,0.72171491,118370.0,118360.0,0.20820688]
[1753285897515,0.72171491,118370.0,118360.0,0.58000659]
[1753285897925,0.72171491,118370.0,118360.0,0.59690382]
[1753285898135,0.72171491,118370.0,118360.0,0.58845524]
[1753285898517,0.55251491,118370.0,118360.0,0.58845524]
[1753285898724,0.55251491,118370.0,118360.0,0.58130382]
[1753285898925,0.38355318,118370.0,118360.0,0.58130382]
[1753285899146,0.37312474,118370.0,118360.0,0.97655162]
[1753285899348,0.0844773,118370.0,118360.0,0.97655162]
[1753285899522,0.13004,118370.0,118360.0,0.97655162]
[1753285901234,0.13848744,118370.0,118360.0,0.97655162]
[1753285902071,0.1553826,118370.0,118360.0,0.97655162]
[1753285902513,0.14693495,118370.0,118360.0,0.97655162]
[1753285902709,0.13004,118370.0,118360.0,0.97655162]
[1753285902914,0.13848744,118370.0,118360.0,0.97655162]
[1753285903336,0.53848744,118370.0,118360.0,0.97655162]
[1753285903748,0.54693502,118370.0,118360.0,0.97655162]
[1753285905699,0.55538274,118370.0,118360.0,0.97655162]
[1753285906346,0.54693502,118370.0,118360.0,0.97655162]
[1753285906558,0.55538267,118370.0,118360.0,0.97655162]
[1753285906765,0.54693502,118370.0,118360.0,0.97655162]
[1753285908248,0.54693495,118370.0,118360.0,0.97655162]
[1753285908964,0.5553826,118370.0,118360.0,0.97655162]
[1753285909312,0.5553826,118370.0,118360.0,0.24984964]
[1753285909520,0.5553826,118370.0,118360.0,0.97655162]
[1753285909961,0.5638304,118370.0,118360.0,0.97655162]
[1753285910166,0.5553826,118370.0,118360.0,0.97655162]
[1753285910682,0.5638304,118370.0,118360.0,0.97655162]
[1753285910887,0.5553826,118370.0,118360.0,0.97655162]
[1753285911815,0.56383032,118370.0,118360.0,0.97655162]
[1753285912195,0.5553826,118370.0,118360.0,0.97655162]
[1753285912423,0.5638304,118370.0,118360.0,0.97655162]
[1753285912632,0.5553826,118370.0,118360.0,0.97655162]
[1753285912779,0.56383047,118370.0,118360.0,0.97655162]
[1753285912985,0.5638304,118370.0,118360.0,0.97655162]
[1753285913765,0.5553826,118370.0,118360.0,0.97655162]
[1753285913967,0.56383032,118370.0,118360.0,0.97655162]
[1753285914186,0.57227819,118370.0,118360.0,0.97655162]
[1753285914394,0.56383032,118370.0,118360.0,0.97655162]
[1753285916948,0.57227826,118370.0,118360.0,0.97655162]
[1753285917391,0.31254046,118370.0,118360.0,0.03559088]
[1753285917603,0.41771498,118370.0,118360.0,0.36584187]
[1753285917803,0.81771498,118370.0,118360.0,0.36584187]
[1753285918049,0.81960498,118370.0,118360.0,0.00249088]
[1753285918254,0.83550498,118370.0,118360.0,0.00249088]
[1753285918467,0.43550498,118370.0,118360.0,0.00249088]
[1753285920060,0.46089798,118370.0,118360.0,0.00249088]
[1753285920258,0.61089798,118370.0,118360.0,0.00249088]
[1753285921721,0.61089798,118370.0,118360.0,0.00149088]
[1753285922560,0.61089798,118370.0,118360.0,0.00049088]
[1753285923550,1.46424897,118370.0,118360.0,0.00049088]
[1753285924646,1.46524897,118370.0,118360.0,0.00049088]
[1753285924854,1.46624897,118370.0,118360.0,0.00049088]
[1753285929785,1.63536897,118370.0,118360.0,0.00049088]
[1753285931709,1.27201798,118370.0,118360.0,0.00049088]
[1753285931856,1.63536897,118370.0,118360.0,0.00049088]
[1753285934832,1.52281799,118370.0,118360.0,0.00049088]
[1753285935028,1.70281799,118370.0,118360.0,0.00049088]
[1753285936842,1.289467,118370.0,118360.0,0.00049088]
[1753285937081,1.35281799,118370.0,118360.0,0.00049088]
[1753285937293,1.339467,118370.0,118360.0,0.00049088]
[1753285937714,1.209467,118370.0,118360.0,0.00049088]
[1753285937930,1.339467,118370.0,118360.0,0.00049088]
[1753285938378,1.70281799,118370.0,118360.0,0.00049088]
[1753285938840,1.273567,118370.0,118360.0,0.00049088]
[1753285939488,1.271677,118370.0,118360.0,0.00049088]
[1753285939913,1.273567,118370.0,118360.0,0.00049088]
[1753285941459,1.289167,118370.0,118360.0,0.00049088]
[1753285941695,1.65251799,118370.0,118360.0,0.00049088]
[1753285941904,1.289167,118370.0,118360.0,0.00049088]
[1753285942124,1.65251799,118370.0,118360.0,0.00049088]
[1753285943194,1.159167,118370.0,118360.0,0.00049088]
[1753285943457,1.126277,118370.0,118360.0,0.01689088]
[1753285943672,1.126277,118370.0,118360.0,0.02216088]
[1753285943673,1.256277,118370.0,118360.0,0.02216088]
[1753285943885,1.23882798,118370.0,118360.0,0.02216088]
[1753285944721,0.80882798,118370.0,118360.0,0.02216088]
[1753285944933,0.95684798,118370.0,118360.0,0.40101187]
[1753285945382,1.08684798,118370.0,118360.0,0.40101187]
[1753285945811,0.74684798,118370.0,118360.0,0.40101187]
[1753285946055,0.72145498,118370.0,118360.0,0.03766088]
[1753285946274,0.72145498,118370.0,118360.0,0.40101187]
[1753285946484,0.72145498,118370.0,118360.0,0.56998787]
[1753285946910,0.72145498,118370.0,118360.0,0.40101187]
[1753285948826,0.59343498,118370.0,118360.0,0.03766088]
[1753285949254,0.72343498,118370.0,118360.0,0.02216088]
[1753285950322,0.72343498,118370.0,118360.0,0.03846088]
[1753285951382,0.72145498,118370.0,118360.0,0.03846088]
[1753285954437,0.72343498,118370.0,118360.0,0.03846088]
[1753285955938,0.72343498,118370.0,118360.0,0.01689088]
[1753285956323,0.89882798,118370.0,118360.0,0.01689088]
[1753285956584,0.89882798,118370.0,118360.0,0.00049088]
[1753285958368,0.89882798,118370.0,118360.0,0.01559088]
[1753285958782,0.89882798,118370.0,118360.0,0.00049088]
[1753285960041,0.89882798,118370.0,118360.0,0.01609088]
[1753285960256,0.89882798,118370.0,118360.0,0.00049088]
[1753285961977,1.27916897,118370.0,118360.0,0.00049088]
[1753285962184,1.29536897,118370.0,118360.0,0.00049088]
[1753285962643,1.63536897,118370.0,118360.0,0.00049088]
[1753285962857,1.65281799,118370.0,118360.0,0.00049088]
[1753285967220,1.65281799,118370.0,118330.0,0.08342754]
[1753285967221,1.3392555,118340.0,118330.0,0.08342754]
[1753285967433,0.17746963,118330.0,118320.0,0.0309]
[1753285967643,0.39397693,118330.0,118320.0,0.03139179]
[1753285967885,0.39397693,118330.0,118320.0,0.03669179]
[1753285968104,0.43420241,118330.0,118320.0,0.03669179]
[1753285968320,0.39397693,118330.0,118320.0,0.03139179]
[1753285968748,0.39397693,118330.0,118320.0,0.03457179]
[1753285968965,0.39397693,118330.0,118320.0,0.03557179]
[1753285969435,0.39397693,118330.0,118320.0,0.03769179]
[1753285969890,0.39190693,118330.0,118320.0,0.03769179]
[1753285970096,0.26194693,118330.0,118320.0,0.03769179]
[1753285970306,0.41194693,118330.0,118320.0,0.40104278]
[1753285970532,0.54194693,118330.0,118320.0,0.03769179]
[1753285970970,0.54392693,118330.0,118320.0,0.03769179]
[1753285972268,0.41392693,118330.0,118320.0,0.03769179]
[1753285972487,0.54194693,118330.0,118320.0,0.03769179]
[1753285972910,0.42039765,118330.0,118320.0,0.03769179]
[1753285973129,0.55039765,118330.0,118320.0,0.03869179]
[1753285973345,0.55039765,118330.0,118320.0,0.40204278]
[1753285975311,0.42039765,118330.0,118320.0,0.40204278]
[1753285975795,0.55047765,118330.0,118320.0,0.03869179]
[1753285975930,0.55047765,118330.0,118320.0,0.40204278]
[1753285976553,0.55047765,118330.0,118320.0,0.03869179]
[1753285977390,0.55245765,118330.0,118320.0,0.03869179]
[1753285977801,0.55245765,118330.0,118320.0,0.01829179]
[1753285977999,0.55245765,118330.0,118320.0,0.00249179]
[1753285978244,0.56845765,118330.0,118320.0,0.00249179]
[1753285978442,0.55245765,118330.0,118320.0,0.00249179]
[1753285978873,0.91580864,118330.0,118320.0,0.00249179]
[1753285979493,0.55245765,118330.0,118320.0,0.00249179]
[1753285979693,0.56072331,118330.0,118320.0,0.00149179]
[1753285980642,0.56072331,118330.0,118320.0,0.01609179]
[1753285980850,0.56072331,118330.0,118320.0,0.03109179]
[1753285981033,0.42237765,118330.0,118320.0,0.03409179]
[1753285981265,0.55253765,118330.0,118320.0,0.03625179]
[1753285982088,0.56116468,118330.0,118320.0,0.03625179]
[1753285982637,0.56116468,118330.0,118320.0,0.01609179]
[1753285982835,0.71116468,118330.0,118320.0,0.00049179]
[1753285983321,0.71128468,118330.0,118320.0,0.00265179]
[1753285983527,0.87850468,118330.0,118320.0,0.40170278]
[1753285984344,0.87850468,118330.0,118320.0,0.57073591]
[1753285984967,0.74822468,118330.0,118320.0,0.57073591]
[1753285985176,0.87005396,118330.0,118320.0,0.57073591]
[1753285985636,0.87005396,118330.0,118320.0,0.40170278]
[1753285986483,0.73977396,118330.0,118320.0,0.40170278]
[1753285986696,0.87005396,118330.0,118320.0,0.40170278]
[1753285988180,0.87005396,118330.0,118320.0,0.03835179]
[1753285988427,0.87203396,118330.0,118320.0,0.03319179]
[1753285988634,0.87203396,118330.0,118320.0,0.00049179]
[1753285989057,0.86340693,118330.0,118320.0,0.00049179]
[1753285989531,0.88880893,118330.0,118320.0,0.01639179]
[1753285989951,0.88880893,118330.0,118320.0,0.00049179]
[1753285990171,0.90470893,118330.0,118320.0,0.00049179]
[1753285990598,0.88880893,118330.0,118320.0,0.00049179]
[1753285993365,0.88880893,118330.0,118320.0,0.01619179]
[1753285993844,0.88880893,118330.0,118320.0,0.40130278]
[1753285994075,0.89552965,118330.0,118320.0,0.40130278]
[1753285994529,0.76500965,118330.0,118320.0,0.40130278]
[1753285994810,0.87012765,118330.0,118320.0,0.57033591]
[1753285995276,0.87012765,118330.0,118320.0,0.40130278]
[1753285995504,0.87020765,118330.0,118320.0,0.40130278]
[1753285997488,0.73960765,118330.0,118320.0,0.40130278]
[1753285997696,0.87016765,118330.0,118320.0,0.40130278]
[1753286001333,0.73960765,118330.0,118320.0,0.40130278]
[1753286001753,0.86154693,118330.0,118320.0,0.40130278]
[1753286005116,0.86154693,118330.0,118320.0,0.03795179]
[1753286005328,0.86154693,118330.0,118320.0,0.40130278]
[1753286006856,0.69234693,118330.0,118320.0,0.40130278]
[1753286010442,0.56194693,118330.0,118320.0,0.57033591]
[1753286010648,0.69230693,118330.0,118320.0,0.58723914]
[1753286011058,0.69230693,118330.0,118320.0,0.57878756]
[1753286011307,0.69230693,118330.0,118320.0,0.58723914]
[1753286011516,0.54863976,118330.0,118320.0,0.59569051]
[1753286011755,0.54018939,118330.0,118320.0,0.60414173]
[1753286012001,0.54018939,118330.0,118320.0,0.61259288]
[1753286012211,0.72611004,118330.0,118320.0,0.6041418]
[1753286012449,0.72611004,118330.0,118320.0,0.59569051]
[1753286012676,0.71765946,118330.0,118320.0,0.59569065]
[1753286012912,0.71765946,118330.0,118320.0,0.60414202]
[1753286013133,0.54018968,118330.0,118320.0,0.61259331]
[1753286013363,0.54864062,118330.0,118320.0,0.61459288]
[1753286014666,0.71865946,118330.0,118320.0,0.591239]
[1753286014883,1.11865946,118330.0,118320.0,0.60814181]
[1753286015118,0.94118932,118330.0,118320.0,0.61659267]
[1753286015561,0.94964019,118330.0,118320.0,0.61659267]
[1753286015770,0.95809113,118330.0,118320.0,0.60814152]
[1753286015983,0.93273853,118330.0,118320.0,0.61659267]
[1753286016190,0.9411894,118330.0,118320.0,0.61659267]
[1753286017041,0.9411894,118330.0,118320.0,0.60814152]
[1753286017255,0.94964034,118330.0,118320.0,0.61659274]
[1753286017461,0.94833309,118330.0,118320.0,0.61659274]
[1753286018010,0.97854142,118330.0,118320.0,0.04195179]
[1753286018202,1.1002507,118330.0,118320.0,0.40530278]
[1753286019200,1.1022307,118330.0,118320.0,0.04195179]
[1753286019417,1.1022307,118330.0,118320.0,0.00449179]
[1753286019418,0.7022307,118330.0,118320.0,0.00449179]
[1753286019638,1.08397169,118330.0,118320.0,0.00449179]
[1753286019821,0.7206207,118330.0,118320.0,0.00449179]
[1753286020305,0.7022307,118330.0,118320.0,0.00449179]
[1753286023248,0.7187307,118330.0,118320.0,0.00449179]
[1753286023449,1.0771207,118330.0,118320.0,0.00449179]
[1753286023852,1.44047169,118330.0,118320.0,0.00449179]
[1753286024278,1.44047169,118330.0,118320.0,0.0038399]
[1753286024701,1.0771207,118330.0,118320.0,0.0038399]
[1753286024908,1.59047169,118330.0,118320.0,0.0038399]
[1753286025320,1.2106207,118330.0,118320.0,0.0038399]
[1753286025959,1.1922307,118330.0,118320.0,0.002]
[1753286026167,1.1922307,118330.0,118320.0,0.0174]
[1753286026370,1.1932307,118330.0,118320.0,0.0154]
[1753286026796,1.1942307,118330.0,118320.0,0.0154]
[1753286026933,1.6903307,118330.0,118320.0,0.0154]
[1753286027160,1.6902907,118330.0,118320.0,0.02062]
[1753286028271,1.6902907,118330.0,118320.0,0.0154]
[1753286028830,1.7156937,118330.0,118320.0,0.0154]
[1753286030228,1.7156937,118330.0,118320.0,0.0308]
[1753286031544,1.7156937,118330.0,118320.0,0.0154]
[1753286031931,0.32748464,118320.0,118310.0,0.0186]
[1753286032168,0.54402194,118320.0,118310.0,0.01893472]
[1753286033202,0.54402194,118320.0,118310.0,0.03653472]
[1753286034034,0.54402194,118320.0,118310.0,0.00383472]
[1753286034445,0.56942694,118320.0,118310.0,0.00383472]
[1753286035002,0.57131694,118320.0,118310.0,0.00383472]
[1753286036026,0.56942694,118320.0,118310.0,0.00383472]
[1753286039059,1.32331695,118320.0,118310.0,0.00383472]
[1753286039922,1.32331695,118320.0,118310.0,0.00283472]
[1753286040356,1.32431695,118320.0,118310.0,0.00283472]
[1753286040571,1.36454243,118320.0,118310.0,0.00283472]
[1753286040792,1.32431695,118320.0,118310.0,0.00283472]
[1753286042311,1.32631695,118320.0,118310.0,0.00283472]
[1753286042527,0.96296596,118320.0,118310.0,0.00283472]
[1753286042747,1.32631695,118320.0,118310.0,0.00283472]
[1753286043849,0.96296596,118320.0,118310.0,0.00283472]
[1753286044068,1.32631695,118320.0,118310.0,0.00283472]
[1753286044707,0.96296596,118320.0,118310.0,0.00283472]
[1753286044921,1.32631695,118320.0,118310.0,0.00283472]
[1753286045142,1.31081695,118320.0,118310.0,0.00283472]
[1753286045352,0.92987596,118320.0,118310.0,0.00283472]
[1753286048516,0.79979596,118320.0,118310.0,0.00283472]
[1753286048730,1.09907596,118320.0,118310.0,0.00283472]
[1753286049796,1.09907596,118320.0,118310.0,0.01933472]
[1753286050697,0.95154694,118320.0,118310.0,0.38785571]
[1753286050921,1.07964694,118320.0,118310.0,0.03960472]
[1753286051576,1.08160694,118320.0,118310.0,0.03960472]
[1753286051796,1.08160694,118320.0,118310.0,0.03443472]
[1753286052235,1.08160694,118320.0,118310.0,0.03748472]
[1753286059021,1.08160694,118320.0,118310.0,0.01933472]
[1753286059470,1.44684793,118320.0,118310.0,0.00283472]
[1753286059881,1.48707341,118320.0,118310.0,0.00283472]
[1753286060096,1.08160694,118320.0,118310.0,0.01873472]
[1753286061373,1.46284793,118320.0,118310.0,0.00283472]
[1753286065006,1.46224793,118320.0,118310.0,0.00283472]
[1753286065622,1.47080755,118320.0,118310.0,0.00283472]
[1753286066356,1.47285657,118320.0,118310.0,0.00283472]
[1753286066584,1.48905657,118320.0,118310.0,0.00283472]
[1753286067115,1.10761558,118320.0,118310.0,0.00283472]
[1753286067334,0.96008656,118320.0,118310.0,0.03999472]
[1753286067550,0.626578,118320.0,118310.0,0.64002066]
[1753286067795,0.39603692,118320.0,118310.0,1.05665142]
[1753286068015,0.0874773,118320.0,118310.0,1.05665142]
[1753286068237,0.6,118340.0,118330.0,0.1943708]
[1753286068493,0.5344773,118340.0,118330.0,0.67025984]
[1753286068724,0.5344773,118340.0,118330.0,0.75473714]
[1753286068943,0.5145173,118340.0,118330.0,0.75473714]
[1753286069145,0.13004,118340.0,118330.0,0.75473714]
[1753286069522,0.62614,118340.0,118330.0,0.77997135]
[1753286069956,0.28012,118350.0,118340.0,0.22535437]
[1753286070168,0.15,118360.0,118350.0,0.19433795]
[1753286070382,0.3646373,118360.0,118350.0,0.95416993]
[1753286070596,0.0844773,118360.0,118350.0,1.29739993]
[1753286070822,0.15,118380.0,118370.0,0.22570512]
[1753286071055,0.2344773,118380.0,118370.0,0.59118611]
[1753286071488,0.15,118390.0,118370.0,1.1322776]
[1753286071700,0.15,118390.0,118380.0,0.95610252]
[1753286071912,0.15,118390.0,118380.0,0.59599969]
[1753286072568,0.15,118390.0,118380.0,1.29935068]
[1753286072805,1e-08,118400.0,118390.0,0.56597228]